Cogmind - Beta 13 @@@ ROGUE MODE // 2024.04.21 @ 21:30:25 Player: Morphaana Result: Self-destructed Performance ------------- Evolutions (6) 3000 Regions Visited (9) 1800 Robots Destroyed (98) 490 Value Destroyed (2428) 2428 Prototype IDs (39) 780 Alien Tech Used (0) 0 Bonus (207) 207 TOTAL SCORE: 8705 Bonus ------- Aligned with FarCom 300 Friendly Fire -93 Cogmind --------- Core Integrity 970/1150 Matter 300/300 Energy 100/100 System Corruption 5% Temperature Cool (0) Movement Core (50) Location -4/Factory Parts ------- > --- POWER (2) -------- (None) > --- PROPULSION (5) --- (None) > --- UTILITY (10) ----- Advanced Heat Sink Structural Scanner Experimental Signal Interpreter Hacking Suite Improved Hacking Suite Improved Hacking Suite System Shield Improved System Shield > --- WEAPON (2) ------- (None) > --- INVENTORY (5) ---- Structural Scanner Advanced ECM Suite Peak State ------------ > --- POWER ------------ Light Angular Momentum Engine Micro Fission Core > --- PROPULSION ------- VTOL Module VTOL Module Improved Flight Unit Nuclear Pulse Array > --- UTILITY ---------- Structural Scanner Experimental Signal Interpreter Improved Transmission Jammer Improved Light Armor Plating Hacking Suite Improved Hacking Suite Improved Hacking Suite System Shield Improved System Shield > --- WEAPON ----------- Advanced Concussive RPG Longsword +1 > --- INVENTORY -------- Light Angular Momentum Engine Field Propulsion Drive Advanced Heat Sink Structural Scanner Advanced ECM Suite [Rating: 86] Favorites ----------- Power Ion Engine Engine Ion Engine Power Core Light Nuclear Core Reactor Cold Fusion Reactor Propulsion Light Treads Treads Light Treads Leg Carbon-fiber Leg Wheel Wheel Flight Unit Improved Flight Unit Utility Hacking Suite Device Heat Sink Storage Large Storage Unit Processor Targeting Computer Hackware Hacking Suite Protection Light Armor Plating Weapon Medium Laser Energy Gun Medium Laser Ballistic Gun Enhanced Autogun Launcher Grenade Launcher Slashing Weapon Longsword +1 Build | -11 -10 -10 -10 -9 -8 -7 -6 -5 -4 ------- Run | Yrd Mat Min Exi Min Mat Fac Fac Fac Fac Slots Evolved 12 | . . . . . 4 2 2 2 2 Power 1 | . . . . . . . . 1 . Propulsion 3 | . . . . . 1 1 . 1 . Utility 8 | . . . . . 3 1 2 . 2 Weapon . | . . . . . . . . . . Parts Attached 135 | 7 12 1 . . 44 45 3 11 12 Power 20 | 2 1 . . . 4 6 . 2 5 Engine 10 | 2 1 . . . 2 2 . 1 2 Core 9 | . . . . . 2 4 . 1 2 Reactor 1 | . . . . . . . . . 1 Propulsion 42 | 2 3 . . . 16 14 1 4 2 Treads 15 | 2 3 . . . 10 . . . . Leg 2 | . . . . . 2 . . . . Wheel 3 | . . . . . 3 . . . . Hover . | . . . . . . . . . . Flight 22 | . . . . . 1 14 1 4 2 Utility 46 | 1 4 . . . 12 18 2 4 5 Device 10 | . 1 . . . 1 5 . 2 1 Storage 6 | 1 3 . . . 2 . . . . Processor 6 | . . . . . 1 4 . . 1 Hackware 10 | . . . . . . 6 1 1 2 Protection 14 | . . . . . 8 3 1 1 1 Artifact . | . . . . . . . . . . Weapon 27 | 2 4 1 . . 12 7 . 1 . Energy Gun 10 | 2 3 . . . 5 . . . . Energy Cannon . | . . . . . . . . . . Ballistic Gun 5 | . . . . . 5 . . . . Ballistic Cannon . | . . . . . . . . . . Launcher 10 | . 1 1 . . . 7 . 1 . Special Weapon . | . . . . . . . . . . Impact Weapon . | . . . . . . . . . . Slashing Weapon 2 | . . . . . 2 . . . . Piercing Weapon . | . . . . . . . . . . Special Melee Weapon . | . . . . . . . . . . Unidentified Prototypes 9 | . . . . . 3 3 . . 3 Parts Lost 44 | . . . . 1 17 7 . 6 13 Power 6 | . . . . . 2 . . 1 3 Propulsion 18 | . . . . . 5 4 . 3 6 Utility 12 | . . . . . 6 2 . 1 3 Weapon 8 | . . . . 1 4 1 . 1 1 Highest Loss Streak 12 | . . . . 1 9 4 . 6 12 To Critical Strikes . | . . . . . . . . . . Average Slot Usage (%) 91 | . 99 100 100 100 80 95 99 94 88 Engine 6 | . 14 14 14 14 4 2 6 3 4 Core 2 | . . . . . 2 4 . 5 5 Treads 13 | . 28 28 28 28 16 . . . . Flight 10 | . . . . . . 29 26 26 20 Device 8 | . 12 14 14 14 6 5 6 8 10 Storage 7 | . 15 14 14 14 9 . . . . Processor 3 | . . . . . 6 5 . . 1 Hackware 10 | . . . . . . 23 39 35 29 Protection 5 | . . . . . 12 6 6 1 5 Energy Gun 9 | . 27 14 14 14 8 . . . . Ballistic Gun 2 | . . . . . 9 . . . . Launcher 3 | . . 14 14 14 . 6 6 4 4 Slashing Weapon 2 | . . . . . . 7 6 5 4 Naked Turns . | . . . . . . . . . . Heaviest Build 54 | 13 30 31 31 31 54 18 19 25 26 Greatest Support 60 | 40 40 40 40 40 60 20 21 26 26 Greatest Overweight (x) 4 | . . . . . 4 . . 1 2 Average Overweight (x) . | . . . . . . . . . . Largest Inventory Capacity 15 | 8 15 15 15 15 15 15 5 5 5 Average Capacity 11 | 6 14 15 15 15 15 5 5 5 5 Most Carried 15 | 1 12 12 13 13 15 15 5 5 5 Average Carried 8 | . 5 12 12 13 12 4 4 4 3 Final Capacity 15 | 8 15 15 15 15 15 5 5 5 5 Final Carried 15 | . 12 12 13 13 15 5 5 4 2 Class Distribution -------------------- 37% | Mutant 25% | Scavenger-Mutant 17% | Hacker-Sprinter 14% | Wizard-Sprinter 5% | Sprinter Dominant Class ---------------- Mutant | -10/Materials Mutant | -10/Mines Mutant | -10/Exiles Mutant | -9/Mines Scavenger-Mutant | -8/Materials Hacker-Sprinter | -7/Factory Wizard-Sprinter | -6/Factory Wizard-Sprinter | -5/Factory Wizard-Sprinter | -4/Factory Resources | -11 -10 -10 -10 -9 -8 -7 -6 -5 -4 ----------- Run | Yrd Mat Min Exi Min Mat Fac Fac Fac Fac Matter Collected 1832 | 176 242 18 . 2 640 528 61 12 153 Remotely . | . . . . . . . . . . Salvage Created 3770 | . 645 20 . . 1479 680 235 148 563 Parts 213 | . 35 3 . . 68 48 15 11 33 Haulers Intercepted 12 | . 1 . . . 2 4 1 1 3 Recyclers Shooed 3 | . 2 . . . 1 . . . . Parts Field Recycled . | . . . . . . . . . . Retrieved Matter . | . . . . . . . . . . Parts Self-Destructed . | . . . . . . . . . . Prevented . | . . . . . . . . . . Kills | -11 -10 -10 -10 -9 -8 -7 -6 -5 -4 ------- Run | Yrd Mat Min Exi Min Mat Fac Fac Fac Fac Combat Hostiles Destroyed 46 | . 13 3 . . 22 5 . 1 2 Melee 6 | . . . . . 1 3 . 1 1 Guns 25 | . 10 . . . 15 . . . . AOE 11 | . 2 3 . . 3 2 . . 1 Classes Destroyed 14 | . 8 . . . 4 1 . 1 . Worker 10 | . 1 . . . 1 7 . . 1 Builder 3 | . 1 . . . . 1 . . 1 Hauler 12 | . 1 . . . 2 4 1 1 3 Recycler 5 | . . . . . 3 2 . . . Mechanic 1 | . 1 . . . . . . . . Operator 8 | . 1 . . . 1 2 1 1 2 Drone 1 | . . . . . . . . 1 . Watcher 14 | . 3 . . . 2 3 3 1 2 Swarmer 12 | . 2 3 . . 2 4 . . 1 Grunt 23 | . 11 . . . 12 . . . . Duelist 2 | . . . . . 2 . . . . Sentry 5 | . . . . . 5 . . . . Hunter 1 | . . . . . 1 . . . . Programmer 2 | . . . . . . 1 . . 1 Best Kill Streak 6 | . 4 3 . . 6 4 2 1 4 Combat Bots Only 4 | . 2 3 . . 4 4 . 1 1 Max Kills in Single Turn 3 | . 2 3 . . 1 2 1 1 1 Gunslinging . | . . . . . . . . . . Exploded 3 | . 1 3 . . 1 1 . . 1 Melee 1 | . . . . . 1 1 . 1 1 Uniques/NPCs Destroyed . | . . . . . . . . . . Combat | -11 -10 -10 -10 -9 -8 -7 -6 -5 -4 -------- Run | Yrd Mat Min Exi Min Mat Fac Fac Fac Fac Hostile Shots Fired 601 | . 65 18 . 19 221 139 21 44 74 Missed 226 | . 17 7 . 7 62 78 11 15 29 Damage Taken 5446 | . 554 84 . 97 2549 794 114 338 916 Core 1055 | . 105 10 . 7 517 159 23 54 180 Absorbed by Shields 30 | . . . . . . . 5 25 . Regen/Repaired (Parts) 123 | . . . . . . 123 . . . Core Remaining (%) 70 | 100 . . . 51 6 77 97 94 . Volleys Fired 209 | . 71 1 . . 130 6 . . 1 Largest 2 | . 2 2 . . 2 1 . . 1 Hottest 100 | . 100 80 . . 100 39 . . . Shots Fired 386 | . 139 2 . . 238 6 . . 1 Gun 375 | . 136 1 . . 238 . . . . Cannon . | . . . . . . . . . . Launcher 11 | . 3 1 . . . 6 . . 1 Special . | . . . . . . . . . . Kinetic 98 | . . . . . 98 . . . . Thermal 249 | . 136 1 . . 112 . . . . Explosive 11 | . 3 1 . . . 6 . . 1 Electromagnetic 28 | . . . . . 28 . . . . Robot Hit Streak 20 | . 12 . . . 20 1 . . . Robot Miss Streak 5 | . 5 . . . 5 1 . . . Penetration Max . | . . . . . . . . . . Secondary Targets . | . . . . . . . . . . Shots Hit Robots 332 | . 86 . . . 175 33 6 9 23 Core Hits 154 | . 40 3 . . 71 23 3 3 11 Critical Kills . | . . . . . . . . . . Critical Parts Destroyed . | . . . . . . . . . . Critical Strikes 21 | . 9 . . . 8 2 . . 2 Burn 17 | . 9 . . . 8 . . . . Sever 4 | . . . . . . 2 . . 2 Melee Attacks 147 | . . . . . 3 71 11 24 38 Impact . | . . . . . . . . . . Slashing 147 | . . . . . 3 71 11 24 38 Piercing . | . . . . . . . . . . Sneak Attacks 22 | . . . . . . 13 1 3 5 Combat Hostiles 1 | . . . . . . . . 1 . Follow-up Attacks . | . . . . . . . . . . Damage Inflicted 9522 | . 1305 124 . 8 2852 2642 421 662 1508 Guns 3656 | . 1106 . . . 2550 . . . . Cannons . | . . . . . . . . . . Explosions 1038 | . 176 124 . . 259 436 . . 43 Melee 4795 | . . . . . 41 2206 421 662 1465 Ramming 33 | . 23 . . 8 2 . . . . Kinetic 1113 | . . . . . 1113 . . . . Thermal 2301 | . 1106 . . . 1195 . . . . Explosive 779 | . 176 124 . . . 436 . . 43 Electromagnetic 501 | . . . . . 501 . . . . Impact . | . . . . . . . . . . Slashing 4795 | . . . . . 41 2206 421 662 1465 Piercing . | . . . . . . . . . . Highest Corruption 5 | . . . . . . . . . 5 Average Corruption 1 | . . . . . . . . . 1 Corruption Purged . | . . . . . . . . . . Corruption Blocked . | . . . . . . . . . . Overload Shots . | . . . . . . . . . . Overflow Damage 946 | . 20 . . . . 490 151 104 181 Projectiles . | . . . . . . . . . . Explosions 37 | . 20 . . . . 17 . . . Melee 909 | . . . . . . 473 151 104 181 Knockbacks . | . . . . . . . . . . Impact . | . . . . . . . . . . Kinetic . | . . . . . . . . . . Secondary . | . . . . . . . . . . Self-Inflicted Damage 392 | . 12 . . . 252 128 . . . Shots 9 | . 1 . . . 4 4 . . . Rammed 6 | . 4 . . 1 1 . . . . Targets Rammed 6 | . 4 . . 1 1 . . . . Kicked . | . . . . . . . . . . Crushed . | . . . . . . . . . . Highest Temperature 345 | . 330 . . . 345 10 . 16 7 Average Temperature 64 | . 63 . . . 71 3 . 6 7 Received Heat Transfer 1456 | . 291 . . . 846 102 42 33 142 Effects 1 | . 1 . . . . . . . . Damage (minor) 1 | . 1 . . . . . . . . Siege Activations . | . . . . . . . . . . Robots Corrupted . | . . . . . . . . . . Combat Hostiles . | . . . . . . . . . . Parts Fried 2 | . . . . . 2 . . . . Impact Corruptions . | . . . . . . . . . . Robots Melted 4 | . 1 . . . 3 . . . . Combat Hostiles 4 | . 1 . . . 3 . . . . Parts Melted 12 | . 8 . . . 4 . . . . Heat Transferred 7274 | . 3790 . . . 3484 . . . . Parts Sabotaged . | . . . . . . . . . . Parts Stolen . | . . . . . . . . . . Parts Stripped . | . . . . . . . . . . Power Chain Reactions 3 | . . . . . 3 . . . . Alert | -11 -10 -10 -10 -9 -8 -7 -6 -5 -4 ------- Run | Yrd Mat Min Exi Min Mat Fac Fac Fac Fac Peak Influence 543 | . 284 96 . . 229 402 543 401 422 Initial 266 | . . 6 . . . 82 196 266 100 Average 146 | . 113 92 . . 84 206 317 319 208 Maximum Alert Level 2 | . 1 . . . 1 2 2 2 2 Low Security (%) 69 | 100 89 100 . 100 93 47 . . 41 Level 1 28 | . 10 . . . 6 51 73 99 52 Level 2 1 | . . . . . . . 26 . 6 Level 3 . | . . . . . . . . . . Level 4 . | . . . . . . . . . . Level 5 . | . . . . . . . . . . High Security . | . . . . . . . . . . Max Security . | . . . . . . . . . . Squads Dispatched 29 | . 3 . . . 6 9 1 4 6 Investigation 18 | . 1 . . . 1 8 1 3 4 Extermination 1 | . . . . . . . . . 1 Reinforcement 7 | . 2 . . . 2 1 . 1 1 Assault . | . . . . . . . . . . Garrison 3 | . . . . . 3 . . . . Intercept . | . . . . . . . . . . Searches Triggered . | . . . . . . . . . . Construction Impeded . | . . . . . . . . . . Haulers Reinforced 1 | . . . . . . . . . 1 Active Scanning Responses . | . . . . . . . . . . Cargo Convoy Interrupts . | . . . . . . . . . . Stealth | -11 -10 -10 -10 -9 -8 -7 -6 -5 -4 --------- Run | Yrd Mat Min Exi Min Mat Fac Fac Fac Fac Distress Signals 12 | . 2 . . . 4 5 . . 1 Communications Jammed 12 | . . . . . . 9 . . 3 Distress Signals 10 | . . . . . . 9 . . 1 Times Spotted 164 | . 23 3 . 4 36 40 22 8 28 Peak Tracking Total 11 | . 3 3 . 4 4 6 9 5 11 Tactical Retreats 28 | . . . . . 2 14 6 2 4 Traps | -11 -10 -10 -10 -9 -8 -7 -6 -5 -4 ------- Run | Yrd Mat Min Exi Min Mat Fac Fac Fac Fac Traps Triggered 7 | . 1 . . . 2 2 1 1 . Indirectly . | . . . . . . . . . . Trap Hack Attempts . | . . . . . . . . . . Triggered . | . . . . . . . . . . Disarmed 5 | . . . . . . . . . 5 Reprogrammed . | . . . . . . . . . . Reused . | . . . . . . . . . . Traps Extracted . | . . . . . . . . . . Installed . | . . . . . . . . . . Triggered . | . . . . . . . . . . Machines | -11 -10 -10 -10 -9 -8 -7 -6 -5 -4 ---------- Run | Yrd Mat Min Exi Min Mat Fac Fac Fac Fac Machines Disabled 9 | . . 1 . . 3 5 . . . Max in Single Turn 4 | . . 1 . . 1 4 . . . Garrison Access 6 | . . . . . . 3 1 1 1 Machines Repaired . | . . . . . . . . . . Machines Dismantled . | . . . . . . . . . . Machines Sabotaged . | . . . . . . . . . . Overloaded Fab Kills . | . . . . . . . . . . Hacking | -11 -10 -10 -10 -9 -8 -7 -6 -5 -4 --------- Run | Yrd Mat Min Exi Min Mat Fac Fac Fac Fac Machines Accessed 61 | . 4 . 1 . 7 26 5 8 10 Terminals 34 | . 3 . . . 5 13 3 3 7 Fabricators 8 | . . . . . . 5 . 2 1 Repair Stations 1 | . . . . . . 1 . . . Recycling Units 10 | . 1 . . . 1 4 1 2 1 Scanalyzers . | . . . . . . . . . . Garrison Access 7 | . . . . . 1 3 1 1 1 Total Hacks 198 | . 10 . 1 . 20 80 18 24 45 Successful 113 | . 6 . 1 . 5 48 9 18 26 Failed 85 | . 4 . . . 15 32 9 6 19 Catastrophic 8 | . . . . . 2 3 . 1 2 Database Lockouts . | . . . . . . . . . . Manual 108 | . 6 . 1 . 11 36 15 9 30 Terminals 143 | . 8 . . . 15 48 16 16 40 Fabricators 18 | . . . . . . 12 . 4 2 Repair Stations 6 | . . . . . . 6 . . . Recycling Units 18 | . 2 . . . 1 10 1 3 1 Scanalyzers . | . . . . . . . . . . Garrison Access 12 | . . . . . 4 4 1 1 2 Terminal Hacks 61 | . 5 . 1 . 3 20 5 8 19 Record 1 | . . . . . . . . . 1 Part Schematic 5 | . . . . . . 3 1 . 1 Robot Analysis 2 | . 1 . . . . 1 . . . Prototype ID Bank 2 | . 1 . . . . 1 . . . Level Access Points 5 | . . . . . 1 1 1 1 1 Branch Access Points 1 | . 1 . . . . . . . . Terminal Index 6 | . 1 . . . 1 1 1 1 1 Fabricator Index 2 | . . . . . . . 1 . 1 Alert Level 4 | . . . . . . . . . 4 Unreport Threat 4 | . . . . . . 2 . . 2 Locate Traps 5 | . 1 . . . . 1 . 1 2 Disarm Traps 3 | . . . . . . . . . 3 Dispatch Records 1 | . . . . . . . . 1 . Investigation Status 1 | . . . . . . . . 1 . Reinforcement Status 3 | . . . . . . 2 . . 1 Recall Investigation 8 | . . . . . 1 4 . 2 1 Recall Reinforcements 3 | . . . . . . 1 . 1 1 Recall Assault 1 | . . . . . . 1 . . . Hauler Manifests 2 | . . . . . . 1 1 . . Registered Components 1 | . . . . . . 1 . . . Derelict Proto ID Bank 1 | . . . 1 . . . . . . Fabricator Hacks 15 | . . . . . . 9 . 4 2 Load Schematic 8 | . . . . . . 5 . 2 1 Build 7 | . . . . . . 4 . 2 1 Repair Station Hacks 4 | . . . . . . 4 . . . Scan Component 2 | . . . . . . 2 . . . Repair 2 | . . . . . . 2 . . . Recycling Unit Hacks 11 | . . . . . 1 5 1 3 1 Report Inventory 8 | . . . . . 1 3 1 2 1 Retrieve Components 3 | . . . . . . 2 . 1 . Scanalyzer . | . . . . . . . . . . Garrison Access Hacks 6 | . . . . . . 3 1 1 1 Seal Access 6 | . . . . . . 3 1 1 1 Unauthorized Hacks 16 | . 1 . . . 1 7 2 2 3 Terminals 16 | . 1 . . . 1 7 2 2 3 Assimilate 4 | . . . . . . 2 . 1 1 Botnet 12 | . 1 . . . 1 5 2 1 2 Fabricators . | . . . . . . . . . . Repair Stations . | . . . . . . . . . . Recycling Units . | . . . . . . . . . . Scanalyzers . | . . . . . . . . . . Garrison Access . | . . . . . . . . . . Data Cores Recovered 3 | . . . . . . . 1 . 2 Used 2 | . . . . . . . 1 . 1 Hacking Detections 52 | . 4 . . . 7 22 4 6 9 Full Trace Events 18 | . . . . . 2 8 1 3 4 Feedback Events 1 | . . . . . . . . . 1 Hackware Fried 1 | . . . . . . . . . 1 Feedback Blocked 1 | . . . . . . . . . 1 Robot Schematics Acquired . | . . . . . . . . . . Robots Built . | . . . . . . . . . . Authchips . | . . . . . . . . . . Time . | . . . . . . . . . . Total Robot Build Rating . | . . . . . . . . . . Part Schematics Acquired 5 | . . . . . . 3 1 . 1 Parts Built 8 | . . . . . . 5 . 3 . Authchips . | . . . . . . . . . . Time 423 | . . . . . . 233 . 56 134 Total Part Build Rating 18 | . . . . . . 11 . 7 . Parts Repaired 2 | . . . . . . 2 . . . Time 26 | . . . . . . 26 . . . Parts Recycled . | . . . . . . . . . . Recycled Matter . | . . . . . . . . . . Retrieved Matter . | . . . . . . . . . . Retrieved Components 7 | . . . . . . 4 . 3 . Parts Scanalyzed . | . . . . . . . . . . Part Schematics Acquired . | . . . . . . . . . . Parts Damaged . | . . . . . . . . . . Bothacking | -11 -10 -10 -10 -9 -8 -7 -6 -5 -4 ------------ Run | Yrd Mat Min Exi Min Mat Fac Fac Fac Fac Used RIF Installer . | . . . . . . . . . . Robots Hacked . | . . . . . . . . . . Non-combat . | . . . . . . . . . . Combat . | . . . . . . . . . . Robot Hacks Applied . | . . . . . . . . . . Relay Couplers Released . | . . . . . . . . . . Fabnet Peak Effective % . | . . . . . . . . . . Robots Rewired . | . . . . . . . . . . Allies Hacked . | . . . . . . . . . . Hacks Repelled . | . . . . . . . . . . Allies | -11 -10 -10 -10 -9 -8 -7 -6 -5 -4 -------- Run | Yrd Mat Min Exi Min Mat Fac Fac Fac Fac Total Allies 3 | . . . . . . 2 . 1 . Largest Group 1 | . . . . . . 1 . 1 . Highest-Rated Group 10 | . . . . . . 10 . 10 . Highest-Rated Ally 10 | . . . . . . 10 . 10 . Total Orders . | . . . . . . . . . . Ally Attacks . | . . . . . . . . . . Total Damage . | . . . . . . . . . . Kills . | . . . . . . . . . . Allies Corrupted . | . . . . . . . . . . Allies Melted . | . . . . . . . . . . Intel | -11 -10 -10 -10 -9 -8 -7 -6 -5 -4 ------- Run | Yrd Mat Min Exi Min Mat Fac Fac Fac Fac Robot Analysis Total 2 | . 1 . . . . 1 . . . Derelict Logs Recovered 1 | . . 1 . . . . . . . Drone Launches . | . . . . . . . . . . Drone Recoveries . | . . . . . . . . . . Exploration | -11 -10 -10 -10 -9 -8 -7 -6 -5 -4 ------------- Run | Yrd Mat Min Exi Min Mat Fac Fac Fac Fac Turns Passed 6823 | 68 1277 269 358 186 2158 1405 279 423 400 Spaces Moved 7938 | 40 599 166 224 116 1008 3288 644 914 939 Core 5 | 5 . . . . . . . . . Treads 1798 | 35 599 166 224 116 658 . . . . Legs 151 | . . . . . 151 . . . . Wheels 199 | . . . . . 199 . . . . Hover . | . . . . . . . . . . Flight 5785 | . . . . . . 3288 644 914 939 Fastest Speed 25 | 50 160 160 160 160 110 27 27 25 28 Average Speed 63 | 146 160 160 160 160 159 28 27 27 28 Slowest Speed 320 | 160 160 160 160 160 320 32 28 106 184 Overloaded Moves . | . . . . . . . . . . Propulsion Burnouts . | . . . . . . . . . . Robots Hopped 12 | . . . . . . 8 1 . 3 Cave-ins Triggered . | . . . . . . . . . . Exploration Rate (%) 40 | 3 77 50 42 31 67 63 19 20 31 Regions Visited 9 Branch Regions 3 Pre-discovered Areas 1 | . . 1 . . . . . . . Known Exits Taken 5 | . 1 . . . 1 1 1 1 . Unknown Exits Taken 4 | 1 . 1 1 1 . . . . . Scrap Searched . | . . . . . . . . . . Spaces Dug 78 | . . . . . 2 44 4 14 14 Terrain Destroyed 218 | . 24 5 . . 66 75 4 14 30 Melee 65 | . . . . . 2 31 4 14 14 Projectile . | . . . . . . . . . . AOE 153 | . 24 5 . . 64 44 . . 16 Terrain Rammed . | . . . . . . . . . . Walls Destroyed . | . . . . . . . . . . Machines Disabled . | . . . . . . . . . . Actions | -11 -10 -10 -10 -9 -8 -7 -6 -5 -4 --------- Run | Yrd Mat Min Exi Min Mat Fac Fac Fac Fac Total 9186 | 47 772 167 224 116 1352 3677 734 1064 1033 Wait 585 | . 73 . . . 132 190 61 94 35 Move 7906 | 39 598 165 223 115 1007 3272 641 913 933 Hop 11 | . . . . . . 7 1 . 3 Pick Up 46 | . 10 . 1 . 14 13 . 3 5 Fast Attach 58 | 6 2 . . . 19 21 1 5 4 Attach 38 | . . . . . 12 14 1 4 7 Detach 10 | . . . . . 5 3 . 1 1 Swap 39 | 1 10 1 . . 13 10 1 2 1 Drop 64 | 1 4 . . . 16 34 . 4 5 Fire 209 | . 71 1 . . 130 6 . . 1 Melee 147 | . . . . . 3 71 11 24 38 Ram . | . . . . . . . . . . Kick . | . . . . . . . . . . Crush 6 | . 4 . . 1 1 . . . . Escape Stasis 67 | . . . . . . 36 17 14 . Rewire . | . . . . . . . . . . Trap . | . . . . . . . . . . Miscellaneous . | . . . . . . . . . . Route ------- -11/Scrapyard -10/Materials (discovered 3 exits: [*Mat] / *Min x2) -10/Mines -10/Exiles -9/Mines (discovered 2 exits: *Mat x2) -8/Materials (discovered 3 exits: *Fac x3) -7/Factory (discovered 5 exits: *Fac x4 / [*Low]) -6/Factory (discovered 4 exits: *Fac x4) -5/Factory (discovered 5 exits: *Fac x4 / [*Upp]) -4/Factory (discovered 4 exits: Res x4) History --------- Turn | Location | Event 34 | -11/Scrapyard | Discovered new exit (range 15) 69 | -11/Scrapyard | Entered Materials 91 | -10/Materials | Identified exit to Mines 313 | -10/Materials | Build established: Mutant 469 | -10/Materials | Discovered new exit (range 6) 1346 | -10/Materials | Entered Mines 1609 | -10/Mines | Deemed a non-threat by the Exiles lab entrance 1609 | -10/Mines | Discovered new exit (range 5) 1615 | -10/Mines | Entered Exiles 1654 | -10/Exiles | Met 8R-AWN 1684 | -10/Exiles | Met EX-HEX 1737 | -10/Exiles | Met EX-BIN 1755 | -10/Exiles | Aligned with FarCom system 1756 | -10/Exiles | Given EX-Vault access code 1793 | -10/Exiles | Opened EX-Vault 1806 | -10/Exiles | Found Longsword +1 1844 | -10/Exiles | Warned to stay clear of 0b10 Research branches 1952 | -10/Exiles | Discovered new exit (range 15) 1973 | -10/Exiles | Left Exiles lab with Longsword +1 1973 | -10/Exiles | Entered Mines 2121 | -9/Mines | Discovered new exit (range 7) 2132 | -9/Mines | Discovered new exit (range 16) 2159 | -9/Mines | Entered Materials 2159 | -8/Materials | Evolved 4 slots: Propulsion x1, Utility x3 2564 | -8/Materials | Discovered new exit (range 16) 2750 | -8/Materials | Build established: Scavenger-Mutant 2756 | -8/Materials | Lost 3 parts (1n2u) 3109 | -8/Materials | Build established: Mutant 3118 | -8/Materials | Core integrity fell below 50% 3141 | -8/Materials | Garrison activated, responded to threat 3183 | -8/Materials | Core integrity fell below 20% 3212 | -8/Materials | Lost 9 parts (1p2n2u4w) 3488 | -8/Materials | Build established: Scavenger-Mutant 4148 | -8/Materials | Identified exit to Factory 4317 | -8/Materials | Entered Factory 4317 | -7/Factory | Evolved 2 slots: Propulsion x1, Utility x1 4604 | -7/Factory | Build established: Sprinter 4635 | -7/Factory | Fabricated Hacking Suite? 4742 | -7/Factory | Discovered new exit (range 15) 4818 | -7/Factory | Identified exit to Factory 4833 | -7/Factory | Fabricated Hacking Suite? 4835 | -7/Factory | Discovered new exit (range 10) 4871 | -7/Factory | Fabricated Hacking Suite? 4980 | -7/Factory | Fabricated Structural Scanner? 4990 | -7/Factory | Build established: Hacker-Sprinter 5162 | -7/Factory | Repaired Lgt. Armor Plating 5176 | -7/Factory | Repaired Grenade Launcher 5595 | -7/Factory | Lost 4 parts (2n1u1w) 5612 | -7/Factory | Found Prototype Launcher 5612 | -7/Factory | Identified Rocket Array 5722 | -7/Factory | Entered another Factory area 5722 | -6/Factory | Evolved 2 slots: Utility x2 5733 | -6/Factory | Identified exit to Factory 6001 | -6/Factory | Entered another Factory area 6001 | -5/Factory | Evolved 2 slots: Power x1, Propulsion x1 6023 | -5/Factory | Build established: Wizard-Sprinter 6035 | -5/Factory | Fabricated Structural Scanner (x2) 6174 | -5/Factory | Fabricated Imp. Hacking Suite (x1) 6315 | -5/Factory | Lost 6 parts (1p3n1u1w) 6329 | -5/Factory | Discovered new exit (range 15) 6368 | -5/Factory | Discovered new exit (range 9) 6404 | -5/Factory | Identified exit to Factory 6424 | -5/Factory | Entered another Factory area 6424 | -4/Factory | Evolved 2 slots: Utility x2 6645 | -4/Factory | Identified exit to Research 6671 | -4/Factory | Hacking Suite fried by hacking feedback 6694 | -4/Factory | Found Prototype Processor 6695 | -4/Factory | Identified Exp. Signal Interpreter 6824 | -4/Factory | Self-destructed Last Messages --------------- Faulty Diametric Drive destroyed. Critical hit (Burn: +50). Imp. Flight Unit destroyed. K-01 Serf collects debris. Neutrino Reactor explodes. K-01 Serf destroyed. Neutrino Reactor explodes. Chain reaction triggered in Lgt. Angular Momentum Engine. VTOL Module destroyed. Imp. Light Armor Plating destroyed. Ambush Trap short circuited. G-67 Veteran shuts down. A-15 Conveyor shuts down. B-60 Warrior emerges from a hatch in the floor. L-61 Swordsman emerges from a hatch in the floor. G-67 Veteran emerges from a hatch in the floor. Mic. Fission Core destroyed. U-05 Engineer lays Concrete. Map ----- +----------------------------------------------------+ | ????????????????????????????????????????????/### | | ???????????????????????????????????????????? # ? | | ?????????????????????????????????????????????????? | | ?????????????????????????????????????????????????? | | ?????????????????????????????????????????????????? | | ?????????????????????????????????????????????????? | | ?????????????????????????????????????????????????? | | ?????????????????????????????????????????????????? | | ?????????????????????????????????????????????????? | | ?????????????????????????????????????????????????? | | ????????????????????????? ]!????????????????????? | | ????????????????????????? ]! ???????????????????? | | ??????????????? #""" " ?????????????????? | | ???????????????+######### ""G""???????????????? | | ????????????? # ??????????????? | | ????????????? u = ???????????????? | | ???????????? ????????????????? | | ???????????? u ?????????????????? | | ???????????? s b ??????????????????? | | ????????????? ss = ??????????????????? | | ??????????????? s ###?????????????????? | | ???????????????## g###?????????????????? | | ???????????????## !g !|gA T##?????????????????? | | ???????????????## !! l ! #####??????????????? | | ???????????????## !! !!! g######## ???????? | | ?????????? ##??## @[ #########?#### ## | | ?????????? + * * ##?####+## | | ?????????? ######## ###; ##?## | | ???????????######## ##### ##?## | | ?????????????????????### ##?## | | ??????????????????????## u ##?## | | ??????????????????????## ##?## | | ??????????????????????## R p u ##?## | | ??????????????????????#### ###p##### ##### | | ??????????????????????#### ### #####+##+##### | | ???????????????????????### ### ##### ## | | ????????????????????? #### ### ##### """" ## | | ????????????????????? ####+###/##### """" ## | | ????????????????????? # # """" ####### | | ????????????????????? # # """" # | | ####????????????? # # + | | ########?????????????+# # """" # | | ????????????? # # """" # ### | | ??????????? ??? # [ # """" # ### | | ??????????? ???? + =%! # """" + ### | | ?????????? ????? # *[ # ### ### | | ? ? + ########### ### | | ##?#######+########?## ] ########### ### | | ##?## ##?## ########## ## | | ##### """""" ##?## + T ## | +----------------------------------------------------+ Best States ------------- Heat Dissipation 62 Energy Generation 28 Energy Capacity 265 Matter Stores 300 Matter Capacity 350 Sight Range 16 Terrain Scan Density 210 Jamming Range 14 Cloak Strength 2 Corruption Containment 8 Armor Coverage 675 Evasion (%) 65 Targeting Accuracy 5 Melee Accuracy 12 Recoil Reduction 3 Offensive Hacking 44 Defensive Hacking 22 Item Schematics ----------------- Hacking Suite | -7/Factory | Hacked Structural Scanner | -7/Factory | Hacked System Shield | -7/Factory | Hacked Imp. Hacking Suite | -6/Factory | Hacked Cld. VTOL Module | -4/Factory | Hacked Robot Schematics ------------------ None Fabricated ------------ Hacking Suite | x1 | -7/Factory Hacking Suite | x1 | -7/Factory Hacking Suite | x1 | -7/Factory Structural Scanner | x2 | -7/Factory Structural Scanner | x2 | -5/Factory Imp. Hacking Suite | x1 | -5/Factory Alien Tech Used ----------------- None Achievements -------------- None Challenges ------------ None Game ------ Seed GrapheneFortressCannon Manual? 0 Play Time 02:18:52 Cumulative 10.6 hours Start 2024.04.19 @ 22:12:45 End 2024.04.21 @ 21:30:25 Sessions 7 Manual Loads 0 Difficulty Rogue Special Mode None Game No. 7 Rogue 7 Adventurer 0 Explorer 0 Win Type - Total 0 Types 0/0/0/0/0/0/0/0/0 Lore% 2 Gallery% 11 Achievement% 14 Wizard Run 0 Options --------- Layout 1 ASCII 0 Keyboard 0 Movement Mouse Keybinds 0 Fullscreen 2 Font 24/Smallcaps Map View 50x35 Zoom Use 0% Tactical HUD 0 Map Filters NONE Filters NONE Steam X RUN: 8199254e-7e8b-4610-a41d-7afb2ba1bda8